fUST/lending_fUST_20250222
["ID","MTS","AMOUNT","RATE_DAILY","PERIOD"]
[353934005,1740155439280,-500.0,0.00013499,2]
[353934006,1740155439293,-500.0,0.00013499,2]
[353934007,1740155439302,-500.0,0.00013499,2]
[353934008,1740155439311,-471.90510045,0.00013499,2]
[353934009,1740155439320,-500.0,0.00013499,2]
[353934010,1740155439329,-500.0,0.00013499,2]
[353934011,1740155439338,-500.0,0.00013499,2]
[353934012,1740155439347,-500.0,0.00013499,2]
[353934013,1740155439357,-500.0,0.00013499,2]
[353934014,1740155439366,-500.0,0.00013499,2]
[353934015,1740155439375,-500.0,0.00013499,2]
[353934016,1740155439385,-500.0,0.00013499,2]
[353934017,1740155439394,-500.0,0.00013499,2]
[353934018,1740155439403,-500.0,0.00013499,2]
[353934019,1740155439412,-500.0,0.00013499,2]
[353934020,1740155439422,-500.0,0.00013499,2]
[353934021,1740155439431,-500.0,0.00013499,2]
[353934022,1740155439441,-500.0,0.00013499,2]
[353934023,1740155439450,-500.0,0.00013499,2]
[353934024,1740155439459,-500.0,0.00013499,2]
[353934025,1740155439469,-500.0,0.00013499,2]
[353934026,1740155439479,-500.0,0.00013499,2]
[353934027,1740155439488,-500.0,0.00013499,2]
[353934028,1740155439498,-500.0,0.00013499,2]
[353934029,1740155439507,-500.0,0.00013499,2]
[353934030,1740155439516,-500.0,0.00013499,2]
[353934031,1740155439525,-500.0,0.00013499,2]
[353934032,1740155439535,-500.0,0.00013499,2]
[353934033,1740155439548,-500.0,0.00013499,2]
[353934034,1740155439557,-500.0,0.00013499,2]
[353934035,1740155439567,-500.0,0.00013499,2]
[353934036,1740155439576,-500.0,0.00013499,2]
[353934037,1740155439586,-500.0,0.00013499,2]
[353934038,1740155439595,-500.0,0.00013499,2]
[353934039,1740155439604,-500.0,0.00013499,2]
[353934040,1740155439613,-500.0,0.00013499,2]
[353934041,1740155439622,-500.0,0.00013499,2]
[353934042,1740155439631,-500.0,0.00013499,2]
[353934043,1740155439640,-500.0,0.00013499,2]
[353934044,1740155439650,-500.0,0.00013499,2]
[353934045,1740155439659,-500.0,0.00013499,2]
[353934046,1740155439668,-500.0,0.00013499,2]
[353934047,1740155439678,-500.0,0.00013499,2]
[353934048,1740155439687,-500.0,0.00013499,2]
[353934049,1740155439696,-500.0,0.00013499,2]
[353934050,1740155439705,-500.0,0.00013499,2]
[353934051,1740155439715,-500.0,0.00013499,2]
[353934052,1740155439724,-400.0,0.00013499,2]
[353934053,1740155439733,-500.0,0.00013499,2]
[353934054,1740155439742,-500.0,0.00013499,2]
[353934055,1740155439751,-500.0,0.00013499,2]
[353934056,1740155439760,-500.0,0.00013499,2]
[353934057,1740155439769,-500.0,0.00013499,2]
[353934058,1740155439779,-500.0,0.00013499,2]
[353934059,1740155439790,-500.0,0.00013499,2]
[353934060,1740155439802,-500.0,0.00013499,2]
[353934061,1740155439811,-500.0,0.00013499,2]
[353934062,1740155439820,-500.0,0.00013499,2]
[353934063,1740155439830,-500.0,0.00013499,2]
[353934064,1740155439840,-500.0,0.00013499,2]
[353934065,1740155439849,-500.0,0.00013499,2]
[353934066,1740155439858,-500.0,0.00013499,2]
[353934067,1740155439868,-3802.29686588,0.000135,5]
[353934068,1740155439877,-23179.13423439,0.000135,2]
[353934069,1740155439961,-87621.8314,0.000135,2]
[353934070,1740155439973,-39452.81864674,0.000135,2]
[353936340,1740155585204,201.516143,9.041e-05,2]
[353936356,1740156564327,-300.0,9.999e-05,2]
[353936357,1740156564351,-2818.0,0.0001,2]
[353936358,1740156564373,-1147.41251279,0.0001,2]
[353936396,1740156632010,-5000.0,9.801e-05,2]
[353936397,1740156632019,-5000.0,9.9e-05,2]
[353936399,1740156632029,-300.0,9.999e-05,2]
[353936401,1740156632039,-1666.58748721,0.0001,2]
[353936403,1740156632048,-2814.0,0.0001,2]
[353936405,1740156632057,-2814.0,0.0001,2]
[353936407,1740156632067,-2814.0,0.0001,2]
[353936409,1740156632076,-2594.48964869,0.0001,2]
[353936770,1740156637729,-219.51035131,0.0001,2]
[353936771,1740156637739,-162.28966863,0.00010323,2]
[353936773,1740156637749,-5817.52,0.00010959,2]
[353936775,1740156637759,-4847.94,0.00010959,2]
[353936777,1740156637768,-4039.95,0.00010959,2]
[353936779,1740156637777,-3366.62,0.00010959,2]
[353936781,1740156637786,-841.25351273,0.00010959,2]
[353936783,1740156637796,-2805.52,0.00010959,2]
[353936785,1740156637806,-2337.93,0.00010959,2]
[353936787,1740156637815,-1948.28,0.00010959,2]
[353936788,1740156637824,-1623.56,0.00010959,2]
[353936789,1740156637834,-1352.97,0.00010959,2]
[353936791,1740156637844,-1127.48,0.00010959,2]
[353936793,1740156637853,-939.56,0.00010959,2]
[353936794,1740156637862,-420.0,0.00010999,2]
[353936796,1740156637872,-500.0,0.00011588,2]
[353936798,1740156637882,-24128.08297426,0.00011863,2]
[353937204,1740156642785,-337.1278732,9.9e-05,2]
[353937205,1740156642795,-164.35868895,0.00011863,2]
[353938057,1740156773053,223.740214,9.041e-05,2]
[353938060,1740157819124,212.553203,9.041e-05,2]
[353938069,1740157832070,-5000.0,9.225e-05,2]
[353938071,1740157832079,-300.0,9.602e-05,2]
[353938073,1740157832089,-5312.29386998,9.603e-05,2]
[353938075,1740157832098,-5681.89963787,9.729e-05,2]
[353938077,1740157832110,-2000.0,9.729e-05,2]
[353938080,1740157832126,-17218.10036213,9.729e-05,2]
[353938081,1740157832136,-2837.28863284,9.9e-05,2]
[353938082,1740157832146,-197.60660835,0.00010219,2]
[353938083,1740157832159,-420.0,0.00010562,2]
[353938084,1740157832168,-782.97,0.00010959,2]
[353938085,1740157832179,-652.47,0.00010959,2]
[353938086,1740157832189,-3008.3128351,0.00011016,2]
[353938087,1740157832198,-250.0,0.0001104,2]
[353938088,1740157832207,-151.0,0.00011066,2]
[353938089,1740157832217,-26788.5999511,0.00011072,2]
[353938090,1740157832227,-194.9763194,0.00011112,2]
[353938091,1740157832236,-1678.4883874,0.00011373,2]
[353938092,1740157832245,-500.0,0.00011588,2]
[353938093,1740157832255,-587.0,0.00011618,2]
[353938095,1740157832263,-169.870073,0.00011738,2]
[353938096,1740157832273,-169.870073,0.0001179,2]
[353938097,1740157832282,-709.439474,0.00011832,2]
[353938098,1740157832291,-169.870073,0.00011842,2]
[353938099,1740157832301,-194.89555964,0.00011846,2]
[353938100,1740157832311,-169.870073,0.00011894,2]
[353938101,1740157832321,-2144.0440657,0.00011936,2]
[353938102,1740157832330,-169.870073,0.00011946,2]
[353938103,1740157832339,-169.870073,0.00011998,2]
[353938104,1740157832348,-169.870073,0.00012051,2]
[353938105,1740157832357,-169.870073,0.00012103,2]
[353938106,1740157832367,-169.870073,0.00012155,2]
[353938107,1740157832376,-169.870073,0.00012207,2]
[353938108,1740157832385,-166.0,0.00012329,2]
[353938109,1740157832394,-194.89555962,0.0001271,2]
[353938110,1740157832406,-823.0,0.0001278,2]
[353938111,1740157832416,-153.0,0.00012804,2]
[353938112,1740157832425,-355.163177,0.00013205,2]
[353938113,1740157832435,-500.0,0.00013473,2]
[353938114,1740157832444,-500.0,0.00013473,2]
[353938115,1740157832453,-500.0,0.00013473,2]
[353938116,1740157832463,-210.10660398,0.00013473,2]
[353938117,1740157832472,-610.26514134,0.00013498,2]
[353938118,1740157832482,-1901.14843294,0.00013499,5]
[353938119,1740157832492,-500.0,0.00013499,2]
[353938120,1740157832501,-500.0,0.00013499,2]
[353938121,1740157832510,-500.0,0.00013499,2]
[353938122,1740157832519,-500.0,0.00013499,2]
[353938123,1740157832529,-500.0,0.00013499,2]
[353938124,1740157832541,-500.0,0.00013499,2]
[353938125,1740157832550,-500.0,0.00013499,2]
[353938126,1740157832559,-392.60969099,0.00013499,2]
[353938127,1740157832570,-500.0,0.00013499,2]
[353938128,1740157832579,-500.0,0.00013499,2]
[353938129,1740157832588,-763.90264342,0.00013499,2]
[353938130,1740157832598,-763.90264342,0.00013499,2]
[353938131,1740157832608,-763.90264342,0.00013499,2]
[353938132,1740157832617,-763.90264342,0.00013499,2]
[353938133,1740157832627,-763.90264342,0.00013499,2]
[353938134,1740157832636,-763.90264342,0.00013499,2]
[353938135,1740157832646,-763.90264342,0.00013499,2]
[353938136,1740157832656,-763.90264342,0.00013499,2]
[353938137,1740157832665,-763.90264342,0.00013499,2]
[353938138,1740157832675,-763.90264342,0.00013499,2]
[353938139,1740157832685,-763.90264342,0.00013499,2]
[353938140,1740157832694,-763.90264342,0.00013499,2]
[353938141,1740157832705,-763.90264342,0.00013499,2]
[353938142,1740157832715,-763.90264342,0.00013499,2]
[353938143,1740157832724,-763.90264342,0.00013499,2]
[353938144,1740157832735,-763.90264342,0.00013499,2]
[353938145,1740157832745,-763.90264342,0.00013499,2]
[353938146,1740157832755,-763.90264342,0.00013499,2]
[353938147,1740157832764,-763.90264342,0.00013499,2]
[353938148,1740157832774,-763.90264342,0.00013499,2]
[353938149,1740157832784,-763.90264342,0.00013499,2]
[353938150,1740157832793,-763.90264342,0.00013499,2]
[353938151,1740157832803,-500.0,0.00013499,2]
[353938152,1740157832813,-500.0,0.00013499,2]
[353938153,1740157832823,-500.0,0.00013499,2]
[353938154,1740157832833,-500.0,0.00013499,2]
[353938155,1740157832843,-500.0,0.00013499,2]
[353938156,1740157832853,-500.0,0.00013499,2]
[353938157,1740157832862,-500.0,0.00013499,2]
[353938158,1740157832872,-500.0,0.00013499,2]
[353938159,1740157832882,-500.0,0.00013499,2]
[353938160,1740157832892,-500.0,0.00013499,2]
[353938161,1740157832903,-500.0,0.00013499,2]
[353938162,1740157832912,-500.0,0.00013499,2]
[353938163,1740157832922,-500.0,0.00013499,2]
[353938164,1740157832931,-500.0,0.00013499,2]
[353938165,1740157832941,-500.0,0.00013499,2]
[353938166,1740157832951,-500.0,0.00013499,2]
[353938167,1740157832961,-500.0,0.00013499,2]
[353938168,1740157832971,-500.0,0.00013499,2]
[353938169,1740157832980,-500.0,0.00013499,2]
[353938170,1740157832991,-500.0,0.00013499,2]
[353938171,1740157833001,-500.0,0.00013499,2]
[353938172,1740157833011,-500.0,0.00013499,2]
[353938173,1740157833020,-500.0,0.00013499,2]
[353938174,1740157833030,-367.65378662,0.00013499,2]
[353938175,1740157833040,-500.0,0.00013499,2]
[353938176,1740157833051,-500.0,0.00013499,2]
[353938177,1740157833061,-500.0,0.00013499,2]
[353938178,1740157833070,-500.0,0.00013499,2]
[353938179,1740157833080,-500.0,0.00013499,2]
[353938180,1740157833090,-500.0,0.00013499,2]
[353938181,1740157833100,-500.0,0.00013499,2]
[353938182,1740157833110,-500.0,0.00013499,2]
[353938183,1740157833119,-500.0,0.00013499,2]
[353938184,1740157833128,-500.0,0.00013499,2]
[353938185,1740157833138,-500.0,0.00013499,2]
[353938186,1740157833147,-763.90264331,0.00013499,2]
[353938187,1740157833159,-500.0,0.00013499,2]
[353938188,1740157833169,-257.39947795,0.00013499,2]
[353938189,1740157833179,-500.0,0.00013499,2]
[353938190,1740157833189,-404.16872163,0.00013499,2]
[353938191,1740157833198,-500.0,0.00013499,2]
[353938192,1740157833208,-500.0,0.00013499,2]
[353938193,1740157833218,-500.0,0.00013499,2]
[353938194,1740157833227,-500.0,0.00013499,2]
[353938195,1740157833237,-500.0,0.00013499,2]
[353938196,1740157833247,-278.89110648,0.00013499,2]
[353938197,1740157833256,-188.00053152,0.00013499,2]
[353938198,1740157833266,-500.0,0.00013499,2]
[353938199,1740157833276,-500.0,0.00013499,2]
[353938200,1740157833285,-500.0,0.00013499,2]
[353938201,1740157833296,-576.56411022,0.00013499,2]
[353938202,1740157833306,-276394.5964517,0.000135,2]
[353938226,1740157838027,-480.60108993,0.00010959,2]
[353938667,1740157843104,-63.12891007,0.00010959,2]
[353938670,1740157843115,-41.94652147,0.000135,2]
[353939207,1740158914657,1079.29552904,0.00017887,90]
[353939240,1740159032234,-5000.0,0.00010216,2]
[353939241,1740159032244,-300.0,0.00010958,2]
[353939242,1740159032253,-453.11,0.00010959,2]
[353939243,1740159032261,-377.59,0.00010959,2]
[353939244,1740159032270,-314.66,0.00010959,2]
[353939245,1740159032279,-262.21,0.00010959,2]
[353939246,1740159032288,-218.51,0.00010959,2]
[353939247,1740159032297,-182.09,0.00010959,2]
[353939248,1740159032306,-151.75,0.00010959,2]
[353939249,1740159032315,-758.75,0.00010959,2]
[353939250,1740159032325,-500.0,0.00011588,2]
[353939251,1740159032334,-205.8766657,0.00012017,2]
[353939252,1740159032342,-420.0,0.00012042,2]
[353939253,1740159032351,-161.414143,0.00012936,2]
[353939255,1740159032360,-587.0,0.00013233,2]
[353939256,1740159032369,-161.414143,0.0001328,2]
[353939257,1740159032378,-171.77518342,0.000134,2]
[353939258,1740159032388,-9528.99550384,0.000134,2]
[353939259,1740159032397,-25535.46443011,0.000134,2]
[353939260,1740159032406,-273.1584595,0.00013473,2]
[353939261,1740159032415,-500.0,0.00013473,2]
[353939262,1740159032425,-500.0,0.00013473,2]
[353939263,1740159032434,-519.05548856,0.00013473,2]
[353939264,1740159032443,-500.97254484,0.00013473,2]
[353939265,1740159032452,-500.0,0.00013473,2]
[353939266,1740159032461,-559.26332365,0.00013473,2]
[353939267,1740159032470,-500.0,0.00013473,2]
[353939268,1740159032479,-500.0,0.00013473,2]
[353939269,1740159032488,-500.0,0.00013473,2]
[353939270,1740159032497,-597.46128311,0.00013473,2]
[353939271,1740159032506,-629.1766346,0.00013473,2]
[353939272,1740159032515,-385.00764503,0.00013473,2]
[353939273,1740159032525,-500.0,0.00013473,2]
[353939274,1740159032534,-160.0,0.00013499,2]
[353939275,1740159032543,-500.0,0.00013499,2]
[353939276,1740159032552,-500.0,0.00013499,2]
[353939277,1740159032561,-501.61593999,0.00013499,2]
[353939278,1740159032570,-201.21821858,0.00013499,2]
[353939279,1740159032580,-500.0,0.00013499,2]
[353939280,1740159032589,-406.46081508,0.00013499,2]
[353939281,1740159032598,-345.0101401,0.00013499,2]
[353939282,1740159032607,-500.0,0.00013499,2]
[353939283,1740159032616,-208.66939085,0.00013499,2]
[353939284,1740159032625,-500.0,0.00013499,2]
[353939285,1740159032635,-400.59282762,0.00013499,2]
[353939286,1740159032644,-500.0,0.00013499,2]
[353939287,1740159032654,-500.0,0.00013499,2]
[353939288,1740159032663,-500.0,0.00013499,2]
[353939289,1740159032672,-500.0,0.00013499,2]
[353939290,1740159032681,-500.0,0.00013499,2]
[353939291,1740159032690,-500.0,0.00013499,2]
[353939292,1740159032699,-500.0,0.00013499,2]
[353939293,1740159032709,-500.0,0.00013499,2]
[353939294,1740159032718,-500.0,0.00013499,2]
[353939295,1740159032727,-314.01612385,0.00013499,2]
[353939296,1740159032736,-576.58058945,0.00013499,2]
[353939297,1740159032745,-5633.93832518,0.000135,5]
[353939298,1740159032758,-2000.0,0.000135,5]
[353939299,1740159032773,-405.51441512,0.000135,5]
[353939300,1740159032782,-6367.77022296,0.000135,5]
[353939301,1740159032793,-44387.59449148,0.000135,5]
[353939302,1740159032802,-108676.58166574,0.000135,2]
[353939303,1740159032939,-62911.49946181,0.000135,2]
[353939337,1740159038137,-493.20088902,0.000135,2]
[353939339,1740159038150,-76542.71646506,0.000135,2]
[353939341,1740159038160,-7435245.59193395,0.000135,5]
[353939343,1740159038171,-1438.5777231,0.000135,5]
[353939409,1740159202314,201.925542,9.041e-05,2]
[353939415,1740160152081,-3000.0,9.817e-05,2]
[353939442,1740160232455,-5000.0,9.719e-05,2]
[353939444,1740160232466,-364.03113513,0.00010219,2]
[353939446,1740160232476,-300.0,0.00012095,2]
[353939448,1740160232486,-11489.38740832,0.00012096,2]
[353939462,1740160232612,-680.13206192,0.00012096,2]
[353939499,1740160238562,-2651.14447732,0.00011975,2]
[353939500,1740160238575,-2348.85552268,0.00011975,2]
[353939501,1740160238585,-1942.92121055,0.00012096,2]
[353939502,1740160238616,-5080.79909503,0.00012096,2]
[353939589,1740160240782,-5706.76022418,0.00012096,2]
[353939591,1740160240791,-161.414143,0.00013164,2]
[353939592,1740160240801,-420.0,0.00013276,2]
[353939594,1740160240810,-152.77071968,0.000133,2]
[353939595,1740160240819,-13049.35491314,0.000135,5]
[353939598,1740160240835,-1733.73,0.000135,5]
[353939660,1740160243447,-28455.92542981,0.000135,5]
[353939661,1740160243460,-151.0,0.000135,2]
[353939662,1740160243470,-151.0,0.000135,2]
[353939663,1740160243479,-151.0,0.000135,2]
[353939664,1740160243490,-151.0,0.000135,2]
[353939665,1740160243500,-151.0,0.000135,2]
[353939666,1740160243509,-151.0,0.000135,2]
[353939667,1740160243520,-39452.81864674,0.000135,2]
[353939668,1740160243530,-151.0,0.000135,2]
[353939669,1740160243539,-136217.86066834,0.000135,2]
[353939670,1740160243549,-161.414143,0.00013545,2]
[353939671,1740160243558,-172.74065556,0.00013598,2]
[353939672,1740160243568,-3000.0,0.00013598,2]
[353939673,1740160243577,-322.0,0.0001362,2]
[353939674,1740160243586,-500.0,0.0001367,2]
[353939675,1740160243596,-500.0,0.0001367,2]
[353939676,1740160243606,-500.0,0.0001367,2]
[353939677,1740160243616,-500.0,0.0001367,2]
[353939678,1740160243625,-187.18432266,0.0001367,2]
[353939679,1740160243635,-500.0,0.0001367,2]
[353939680,1740160243644,-352.3889775,0.0001367,2]
[353939681,1740160243654,-500.0,0.0001367,2]
[353939682,1740160243664,-500.0,0.0001367,2]
[353939683,1740160243673,-500.0,0.0001367,2]
[353939684,1740160243683,-500.0,0.0001367,2]
[353939685,1740160243693,-500.0,0.0001367,2]
[353939686,1740160243702,-500.0,0.0001367,2]
[353939687,1740160243714,-500.0,0.0001367,2]
[353939688,1740160243724,-500.0,0.0001367,2]
[353939689,1740160243733,-500.0,0.0001367,2]
[353939690,1740160243743,-500.0,0.0001367,2]
[353939691,1740160243755,-500.0,0.0001367,2]
[353939692,1740160243765,-384.22587266,0.0001367,2]
[353939693,1740160243775,-500.0,0.0001367,2]
[353939694,1740160243784,-500.2436958,0.00013673,2]
[353939695,1740160243794,-156.65484187,0.00013673,2]
[353939696,1740160243804,-417.22224198,0.00013673,2]
[353939697,1740160243813,-500.0,0.00013673,2]
[353939698,1740160243823,-515.15790005,0.00013673,2]
[353939699,1740160243832,-277.10401712,0.00013673,2]
[353939700,1740160243842,-500.0,0.00013673,2]
[353939701,1740160243851,-151.08092758,0.00013673,2]
[353939702,1740160243861,-500.27639315,0.00013673,2]
[353939703,1740160243870,-500.43396858,0.00013673,2]
[353939704,1740160243879,-155.0834337,0.00013673,2]
[353939705,1740160243889,-500.0,0.00013697,2]
[353939706,1740160243898,-224.00511507,0.00013697,2]
[353939707,1740160243908,-173.41769932,0.00013697,2]
[353939708,1740160243918,-500.0,0.00013697,2]
[353939709,1740160243928,-500.0,0.00013697,2]
[353939710,1740160243937,-151.0,0.00013698,2]
[353939711,1740160243947,-151.0,0.00013698,2]
[353939712,1740160243958,-151.0,0.00013698,2]
[353939713,1740160243968,-208.904446,0.00013698,2]
[353939714,1740160243977,-500.0,0.00013698,2]
[353939715,1740160243987,-501.27347678,0.00013698,2]
[353939716,1740160243997,-500.0,0.00013698,2]
[353939717,1740160244006,-500.0,0.00013698,2]
[353939718,1740160244016,-505.4317626,0.00013698,2]
[353939719,1740160244025,-500.0,0.00013698,2]
[353939720,1740160244035,-500.0,0.00013698,2]
[353939721,1740160244044,-500.0,0.00013698,2]
[353939722,1740160244053,-500.0,0.00013698,2]
[353939723,1740160244063,-500.0,0.00013698,2]
[353939724,1740160244073,-500.0,0.00013698,2]
[353939725,1740160244082,-500.0,0.00013698,2]
[353939726,1740160244091,-500.0,0.00013698,2]
[353939727,1740160244101,-500.0,0.00013698,2]
[353939728,1740160244111,-212.67890808,0.00013698,2]
[353939729,1740160244120,-505.13733526,0.00013698,2]
[353939730,1740160244130,-500.0,0.00013698,2]
[353939731,1740160244140,-500.3820602,0.00013698,2]
[353939732,1740160244149,-500.0,0.00013698,2]
[353939733,1740160244159,-500.0,0.00013698,2]
[353939734,1740160244169,-500.0,0.00013698,2]
[353939735,1740160244178,-500.0,0.00013698,2]
[353939736,1740160244188,-500.0,0.00013698,2]
[353939737,1740160244198,-500.0,0.00013698,2]
[353939738,1740160244209,-500.0,0.00013698,2]
[353939739,1740160244218,-500.0,0.00013698,2]
[353939740,1740160244228,-503.21566257,0.00013698,2]
[353939741,1740160244237,-500.0,0.00013698,2]
[353939742,1740160244247,-500.0,0.00013698,2]
[353939743,1740160244256,-500.0,0.00013698,2]
[353939744,1740160244266,-500.35165563,0.00013698,2]
[353939745,1740160244276,-500.0,0.00013698,2]
[353939746,1740160244285,-500.0,0.00013698,2]
[353939747,1740160244295,-500.0,0.00013698,2]
[353939748,1740160244304,-500.0,0.00013698,2]
[353939749,1740160244313,-649.00686299,0.00013698,2]
[353939750,1740160244323,-500.0,0.00013698,2]
[353939751,1740160244336,-500.0,0.00013698,2]
[353939752,1740160244346,-500.62245668,0.00013698,2]
[353939753,1740160244355,-500.0,0.00013698,2]
[353939754,1740160244364,-501.22249097,0.00013698,2]
[353939755,1740160244374,-500.62163562,0.00013698,2]
[353939756,1740160244384,-500.0,0.00013698,2]
[353939757,1740160244393,-500.0,0.00013698,2]
[353939758,1740160244402,-500.0,0.00013698,2]
[353939759,1740160244413,-500.0,0.00013698,2]
[353939760,1740160244423,-500.0,0.00013698,2]
[353939761,1740160244432,-500.0,0.00013698,2]
[353939762,1740160244441,-694.76,0.00013698,2]
[353939763,1740160244450,-500.0,0.00013698,2]
[353939764,1740160244463,-500.32253261,0.00013698,2]
[353939765,1740160244472,-500.0,0.00013698,2]
[353939766,1740160244481,-504.53659982,0.00013698,2]
[353939767,1740160244491,-500.0,0.00013698,2]
[353939768,1740160244501,-500.0,0.00013698,2]
[353939769,1740160244510,-500.0,0.00013698,2]
[353939770,1740160244520,-631.26521795,0.00013698,2]
[353939771,1740160244529,-500.5349388,0.00013698,2]
[353939772,1740160244539,-500.36055595,0.00013698,2]
[353939773,1740160244548,-500.0,0.00013698,2]
[353939774,1740160244557,-583.50523237,0.00013698,2]
[353939775,1740160244567,-502.94220331,0.00013698,2]
[353939776,1740160244576,-500.0,0.00013698,2]
[353939777,1740160244585,-500.7538619,0.00013698,2]
[353939778,1740160244595,-500.0,0.00013698,2]
[353939779,1740160244605,-500.0,0.00013698,2]
[353939780,1740160244615,-500.0,0.00013698,2]
[353939781,1740160244625,-506.06221774,0.00013698,2]
[353939782,1740160244635,-500.0,0.00013698,2]
[353939783,1740160244644,-500.0,0.00013698,2]
[353939784,1740160244653,-500.0,0.00013698,2]
[353939785,1740160244663,-500.0,0.00013698,2]
[353939786,1740160244672,-500.0,0.00013698,2]
[353939787,1740160244681,-425.1528,0.00013698,2]
[353939788,1740160244690,-500.0,0.00013698,2]
[353939789,1740160244699,-500.54553569,0.00013698,2]
[353939790,1740160244711,-500.0,0.00013698,2]
[353939791,1740160244719,-501.40023359,0.00013698,2]
[353939792,1740160244729,-500.0,0.00013698,2]
[353939793,1740160244738,-500.0,0.00013698,2]
[353939794,1740160244748,-501.28683986,0.00013698,2]
[353939795,1740160244757,-500.0,0.00013698,2]
[353939796,1740160244766,-500.0,0.00013698,2]
[353939797,1740160244775,-500.0,0.00013698,2]
[353939798,1740160244784,-500.0,0.00013698,2]
[353939799,1740160244793,-500.0,0.00013698,2]
[353939800,1740160244802,-500.3307018,0.00013698,2]
[353939801,1740160244811,-500.35668094,0.00013698,2]
[353939802,1740160244820,-500.0,0.00013698,2]
[353939803,1740160244829,-500.0,0.00013698,2]
[353939804,1740160244838,-500.0,0.00013698,2]
[353939805,1740160244848,-500.0,0.00013698,2]
[353939806,1740160244857,-500.0,0.00013698,2]
[353939807,1740160244866,-500.0,0.00013698,2]
[353939808,1740160244876,-500.55612938,0.00013698,2]
[353939809,1740160244885,-500.0,0.00013698,2]
[353939810,1740160244894,-500.0,0.00013698,2]
[353939811,1740160244904,-500.0,0.00013698,2]
[353939812,1740160244914,-500.0,0.00013698,2]
[353939813,1740160244923,-500.64450255,0.00013698,2]
[353939814,1740160244933,-204.85631572,0.00013698,2]
[353939815,1740160244942,-500.0,0.00013698,2]
[353939816,1740160244952,-500.0,0.00013698,2]
[353939817,1740160244963,-500.0,0.00013698,2]
[353939818,1740160244972,-500.0,0.00013698,2]
[353939819,1740160244982,-500.0,0.00013698,2]
[353939820,1740160244991,-500.0,0.00013698,2]
[353939821,1740160245001,-500.0,0.00013698,2]
[353939822,1740160245010,-500.0,0.00013698,2]
[353939823,1740160245019,-500.0,0.00013698,2]
[353939824,1740160245029,-500.0,0.00013698,2]
[353939825,1740160245038,-500.0,0.00013698,2]
[353939826,1740160245158,-500.0,0.00013698,2]
[353939827,1740160245168,-500.0,0.00013698,2]
[353939828,1740160245178,-500.0,0.00013698,2]
[353939829,1740160245188,-502.92849798,0.00013698,2]
[353939830,1740160245197,-500.47894594,0.00013698,2]
[353939831,1740160245208,-500.0,0.00013698,2]
[353939832,1740160245218,-500.0,0.00013698,2]
[353939833,1740160245227,-500.0,0.00013698,2]
[353939834,1740160245236,-500.0,0.00013698,2]
[353939835,1740160245246,-500.0,0.00013698,2]
[353939836,1740160245254,-500.0,0.00013698,2]
[353939837,1740160245263,-500.0,0.00013698,2]
[353939838,1740160245272,-511.6,0.00013698,2]
[353939839,1740160245281,-500.0,0.00013698,2]
[353939840,1740160245290,-502.78716685,0.00013698,2]
[353939841,1740160245300,-500.0,0.00013698,2]
[353939842,1740160245310,-501.45091179,0.00013698,2]
[353939843,1740160245320,-500.0,0.00013698,2]
[353939844,1740160245331,-500.0,0.00013698,2]
[353939845,1740160245345,-500.0,0.00013698,2]